[Event "26th Triest Festival 2024"]
[Site "Triest"]
[Date "2024.09.02"]
[Round "4.1"]
[White "Zhou, Yang-Fan"]
[Black "Bosiocic, Marin"]
[Result "0-1"]
[Annotator "RC"]
[ECO "B08"]
[WhiteElo "2437"]
[BlackElo "2555"]
[PlyCount "132"]
[EventDate "2024.09.02"]
[EventType "swiss"]
[EventCountry "ITA"]
[SourceTitle "playchess.com"]
[Source "ChessBase"]
[SourceQuality "1"]
[TimeControl "5400+30"]

1. e4 {[%emt 0:00:03]} d6 {[%emt 0:00:05]} 2. d4 {[%emt 0:00:07]} Nf6 {[%emt 0:00:07]} 3. Nc3 {[%emt 0:00:06]} g6 {[%emt 0:00:05]} 4. Nf3 {[%emt 0:00:37]} Bg7 {[%emt 0:00:09]} 5. Be2 {[%emt 0:00:05]} O-O {[%emt 0:00:08]} 6. O-O {[%emt 0:00:08]} Nc6 {[%emt 0:00:04]} 7. d5 {[%emt 0:00:26]} Nb8 {[%emt 0:00:06]} 8. Be3 {[%emt 0:04:56]} e5 {[%emt 0:00:21]} 9. a4 {[%emt 0:04:42]} a5 {[%emt 0:02:08]} 10. Nd2 {[%emt 0:04:21]} Na6 {[%emt 0:05:57]} 11. Nc4 {[%emt 0:01:53]} Nb4 {[%emt 0:04:17]} 12. Bf3 {[%emt 0:04:14]} h5 {[%emt 0:01:54]} 13. Bg5 {[%emt 0:05:50]} Qd7 {[%emt 0:01:43]} 14. Nb5 {[%emt 0:01:28]} Nh7 {[%emt 0:01:40]} 15. Be3 {[%emt 0:16:38]} Qd8 {[%emt 0:07:03]} 16. c3 {[%emt 0:01:34]} Na6 {[%emt 0:00:36]} 17. Nxa5 {[%emt 0:03:04]} f5 {[%emt 0:01:16]} 18. b4 {[%emt 0:02:30]} f4 {[%emt 0:01:36]} 19. Bd2 {[%emt 0:00:02]} Ng5 {[%emt 0:01:28]} 20. Kh1 {[%emt 0:02:20]} Nxf3 {[%emt 0:03:04]} 21. gxf3 {[%emt 0:00:02]} Qh4 {[%emt 0:01:11]} 22. Rg1 {[%emt 0:05:17]} g5 {[%emt 0:00:25]} 23. c4 {[%emt 0:02:47]} Rf6 {[%emt 0:01:28]} 24. Rc1 {[%emt 0:06:56]} Bf8 {[%emt 0:01:33]} 25. Nb3 {[%emt 0:05:08]} c6 {[%emt 0:06:22]} 26. Na3 {[%emt 0:00:02]} Nc7 {[%emt 0:00:11]} 27. a5 {[%emt 0:00:29]} Rg6 {[%emt 0:00:57]} 28. Be1 {[%emt 0:02:47]} cxd5 {[%emt 0:04:23]} 29. cxd5 {[%emt 0:01:15]} Ne8 {[%emt 0:06:54]} 30. Nc4 {[%emt 0:00:02]} Bh3 {[%emt 0:00:45]} 31. Ne3 {[%emt 0:03:41]} Bd7 {[%emt 0:02:16]} 32. Nf5 {[%emt 0:04:33]} Qh3 {[%emt 0:00:07]} 33. Qd3 {[%emt 0:00:39]} Ng7 {[%emt 0:04:39]} 34. Nxg7 {[%emt 0:00:54]} Rxg7 {[%emt 0:00:11]} 35. Rc3 {[%emt 0:02:02]} g4 {[%emt 0:01:51]} 36. fxg4 {[%emt 0:00:54]} Qxd3 {[%emt 0:00:49]} 37. Rxd3 {[%emt 0:00:01]} hxg4 {[%emt 0:00:07]} 38. Rc3 {[%emt 0:02:22]} Bb5 {[%emt 0:02:09]} 39. f3 {[%emt 0:01:43]} gxf3 {[%emt 0:01:21]} 40. Nd2 {[%emt 0:01:00]} Be2 {[%emt 0:04:43]} 41. Nxf3 {[%emt 0:00:38]} Be7 {[%emt 0:00:17]} 42. Rg2 {[%emt 0:02:56]} Rxg2 {[%emt 0:00:22]} 43. Kxg2 {[%emt 0:00:01]} Bd8 {[%emt 0:00:53]} 44. Bf2 {[%emt 0:05:59]} Kf7 {[%emt 0:01:03]} 45. Nh4 {[%emt 0:02:15]} Be7 {[%emt 0:01:46]} 46. h3 {[%emt 0:01:46]} Bg5 {[%emt 0:14:19]} 47. Rc7+ {[%emt 0:00:59]} Kf6 {[%emt 0:00:59]} 48. Nf3 {[%emt 0:01:27]} Rg8 {[%emt 0:00:36]} 49. Nh2 {[%emt 0:00:43]} f3+ {[%emt 0:03:57]} 50. Kg1 {[%emt 0:00:01]} Kg6 {[%emt 0:03:13]} 51. Ng4 {[%emt 0:00:49]} Bd3 {[%emt 0:02:16]} 52. Rxb7 {[%emt 0:00:39]} Rc8 {[%emt 0:01:12]} 53. Be3 {[%emt 0:00:12]} Rc2 {[%emt 0:02:26]} 54. Bxg5 {[%emt 0:00:45]} Rg2+ {[%emt 0:02:02]} 55. Kh1 {[%emt 0:00:01]} Bxe4 {[%emt 0:00:14]} 56. Be3 {[%emt 0:00:56]} Rxg4 {[%emt 0:00:37]} 57. Bf2 {[%emt 0:01:15]} Rg2 {[%emt 0:00:04]} 58. Ba7 {[%emt 0:00:00]} f2 {[%emt 0:03:54]} 59. Bxf2 {[%emt 0:00:00]} Rxf2+ {[%emt 0:00:04]} 60. Kg1 {[%emt 0:00:03]} Rg2+ {[%emt 0:00:44]} 61. Kf1 {[%emt 0:00:06]} Ra2 {[%emt 0:00:13]} 62. Rd7 {[%emt 0:01:20]} Kg5 {[%emt 0:00:12]} 63. Rxd6 {[%emt 0:00:35]} Kf4 {[%emt 0:00:05]} 64. Kg1 {[%emt 0:00:51]} Rg2+ {[%emt 0:02:24]} 65. Kf1 {[%emt 0:00:01]} Ke3 {[%emt 0:00:35]} 66. Rc6 {[%emt 0:00:22]} Rg8 {[%emt 0:00:20]} 0-1

[Event "26th Triest Festival 2024"]
[Site "Triest"]
[Date "2024.09.02"]
[Round "4.2"]
[White "Baklan, Vladimir"]
[Black "Barp, Alberto"]
[Result "1/2-1/2"]
[Annotator "TA"]
[ECO "C48"]
[WhiteElo "2535"]
[BlackElo "2431"]
[PlyCount "31"]
[EventDate "2024.09.02"]
[EventType "swiss"]
[EventCountry "ITA"]
[SourceTitle "playchess.com"]
[Source "ChessBase"]
[SourceQuality "1"]
[TimeControl "5400+30"]

{[%evp 9,31,18,16,15,20,11,17,11,0,0,0,0,0,0,-21,-18,-12,-34,-27,-37,-22,-33,-34,-29]} 1. e4 {[%emt 0:00:03]} e5 {[%emt 0:00:04]} 2. Nf3 {[%emt 0:00:04]} Nc6 {[%emt 0:00:03]} 3. Nc3 {[%emt 0:00:04]} Nf6 {[%emt 0:00:04]} 4. Bb5 {[%emt 0:00:04][%cal Bf1b5,Bb5a4,Ba4b3][%mdl 32]} Bd6 {[%emt 0:05:54]} 5. d3 {[%emt 0:00:23]} a6 {[%emt 0:00:48]} 6. Ba4 {[%emt 0:00:05]} O-O {[%emt 0:03:09]} 7. Bg5 {[%emt 0:07:50]} h6 {[%emt 0:04:29]} 8. Bh4 {[%emt 0:03:37] The position is equal.} b5 {[%emt 0:02:04]} 9. Bb3 {[%emt 0:00:04]} Be7 {[%emt 0:00:22]} 10. a4 {[%emt 0:06:56]} b4 {[%emt 0:04:33]} 11. Bxf6 {[%emt 0:00:05]} Bxf6 {[%emt 0:00:51]} 12. Nd5 {[%emt 0:00:03]} Na5 {[%emt 0:15:18]} 13. Nxb4 {[%emt 0:06:18]} Nxb3 {[%emt 0:00:08]} 14. cxb3 {[%emt 0:00:03]} c6 {[%emt 0:01:03] Dodges Nd5} 15. Nc2 {[%emt 0:03:16]} Rb8 {[%emt 0:05:34][%mdl 1024] Black has compensation.} 16. b4 {[%emt 0:25:19] Weighted Error Value: White=0.05 (flawless) /Black=0.01 (flawless) .  OK:         	White=5     	Black=7} 1/2-1/2

[Event "26th Triest Festival 2024"]
[Site "Triest"]
[Date "2024.09.02"]
[Round "4.3"]
[White "Fischer, Daniel"]
[Black "Tiviakov, Sergei"]
[Result "1/2-1/2"]
[Annotator "TA"]
[ECO "C10"]
[WhiteElo "2349"]
[BlackElo "2531"]
[PlyCount "24"]
[EventDate "2024.09.02"]
[EventType "swiss"]
[EventCountry "ITA"]
[SourceTitle "playchess.com"]
[Source "ChessBase"]
[SourceQuality "1"]
[TimeControl "5400+30"]

{[%evp 19,24,24,33,24,23,25,52]} 1. e4 {[%emt 0:00:04]} e6 {[%emt 0:02:15]} 2. d4 {[%emt 0:00:07]} d5 {[%emt 0:00:04]} 3. Nc3 {[%emt 0:00:06]} Nf6 {[%emt 0:00:59]} 4. Bg5 {[%emt 0:00:15]} dxe4 {[%emt 0:01:17]} 5. Nxe4 {[%emt 0:00:05]} Nbd7 {[%emt 0:00:14]} 6. Nxf6+ {[%emt 0:00:53]} Nxf6 {[%emt 0:00:06]} 7. Nf3 {[%emt 0:00:08]} c5 {[%emt 0:00:32]} 8. dxc5 {[%emt 0:07:04]} Qa5+ {[%emt 0:05:38]} 9. c3 {[%emt 0:03:07]} Qxc5 {[%emt 0:00:18]} 10. Bd3 {[%emt 0:01:38]} Be7 {[%emt 0:04:05]} 11. O-O {[%emt 0:01:45]} Bd7 {[%emt 0:10:17]} 12. Qe2 {[%emt 0:04:30]} Bc6 {[%emt 0:12:23] Weighted Error Value: White=0.04 (flawless) /Black=0.00 (flawless) .  Inaccurate:     	---       	Black=1      OK:         	---       	Black=1} 1/2-1/2

[Event "26th Triest Festival 2024"]
[Site "Triest"]
[Date "2024.09.02"]
[Round "4.4"]
[White "Doric, Darko"]
[Black "Leszko, Bence"]
[Result "1-0"]
[Annotator "TA"]
[ECO "D30"]
[WhiteElo "2443"]
[BlackElo "2243"]
[PlyCount "169"]
[EventDate "2024.09.02"]
[EventType "swiss"]
[EventCountry "ITA"]
[SourceTitle "playchess.com"]
[Source "ChessBase"]
[SourceQuality "1"]
[TimeControl "5400+30"]

{[%evp 9,169,28,24,27,26,17,22,22,54,25,92,77,70,86,94,72,87,47,103,63,69,83,85,46,97,92,99,90,100,85,99,94,98,64,75,50,58,59,75,37,44,46,52,43,48,54,59,44,61,50,85,88,109,0,0,0,0,0,0,0,0,0,0,0,0,0,0,0,0,0,0,0,0,0,0,0,0,0,0,0,0,0,0,0,0,0,0,0,0,0,34,0,0,0,0,0,0,0,0,0,0,0,0,0,0,0,0,0,0,0,0,0,0,0,0,0,0,0,0,0,0,0,0,0,0,0,0,0,0,0,8,8,17,22,24,17,42,31,9,19,128,112,117,0,0,0,310,318,297,309,277,283,315,323,314,305,335,314,664,531,29969,29970]} 1. d4 {[%emt 0:00:05]} d5 {[%emt 0:04:55]} 2. c4 {[%emt 0:00:16]} e6 {[%emt 0:00:06]} 3. Nf3 {[%emt 0:00:06]} a6 {[%emt 0:00:07]} 4. Bg5 {[%emt 0:00:12]} Be7 {[%emt 0:00:06]} 5. Bxe7 {[%emt 0:00:09]} Nxe7 {[%emt 0:00:36]} 6. e3 {[%emt 0:02:34]} O-O {[%emt 0:01:19]} 7. Nbd2 {[%emt 0:00:49]} Nd7 {[%emt 0:01:38]} 8. Rc1 {[%emt 0:00:49] The position is equal.} dxc4 {[%emt 0:01:05]} 9. Bxc4 {[%emt 0:02:27]} b5 {[%emt 0:05:08]} (9... c5 $11 {keeps the balance.}) 10. Be2 {[%emt 0:00:19]} Bb7 {[%emt 0:00:07]} 11. O-O {[%emt 0:01:10]} Ng6 {[%emt 0:03:31]} 12. Qc2 {[%emt 0:06:58]} Rc8 {[%emt 0:00:21]} 13. Nb3 {[%emt 0:01:14]} e5 {[%emt 0:01:12]} (13... Bd5 $14) 14. Nc5 {[%emt 0:07:24]} Nxc5 {[%emt 0:01:00]} 15. Qxc5 {[%emt 0:00:24]} e4 {[%emt 0:02:09]} 16. Nd2 {[%emt 0:08:03]} f5 {[%emt 0:10:50] [#] Against Bg4} (16... Bd5 $14) 17. a4 $1 $16 {[%emt 0:02:38] White is more active.} c6 {[%emt 0:08:29]} 18. Bd1 {[%emt 0:05:37]} Kh8 {[%emt 0:00:28]} 19. g3 {[%emt 0:00:51]} Rf6 {[%emt 0:01:21]} 20. b4 {[%emt 0:00:38]} Nf8 {[%emt 0:00:43][%cal Bg6f8,Bf8d7,Bd7f6,Bf6d5][%mdl 32]} 21. Bb3 {[%emt 0:02:14]} Nd7 {[%emt 0:02:25]} 22. Qc3 {[%emt 0:00:53]} Qe7 {[%emt 0:02:52]} 23. a5 {[%emt 0:01:27]} h5 {[%emt 0:07:22]} 24. f4 {[%emt 0:04:21]} Rg6 {[%emt 0:00:47]} 25. Rf2 {[%emt 0:01:22]} Nf6 {[%emt 0:02:54]} 26. Qc5 {[%emt 0:00:13]} Qd7 {[%emt 0:00:28]} 27. Rg2 {[%emt 0:02:11]} Nd5 {[%emt 0:00:58]} 28. Nf1 {[%emt 0:00:16]} Rh6 {[%emt 0:01:03]} 29. h3 {[%emt 0:02:17]} Rg6 {[%emt 0:01:42]} 30. Bd1 {[%emt 0:01:10]} Rh6 {[%emt 0:00:54] [#]} 31. Kh2 {[%emt 0:00:51]} (31. g4 $1 $16) 31... Qd6 $11 {[%emt 0:03:28]} 32. Qxd6 {[%emt 0:01:43]} Rxd6 {[%emt 0:00:01]} 33. Rb2 {[%emt 0:00:27]} g6 {[%emt 0:00:01]} 34. Bc2 {[%emt 0:00:20]} Rc7 {[%emt 0:00:28]} 35. Bb1 {[%emt 0:00:15][%cal Og3g4]} Bc8 {[%emt 0:00:17]} 36. Ba2 {[%emt 0:00:38]} Nf6 {[%emt 0:08:47]} 37. Nd2 {[%emt 0:01:43][%cal Bf1d2,Bd2b3,Bb3c5][%mdl 32]} Be6 {[%emt 0:03:02]} 38. Bxe6 {[%emt 0:03:22]} Rxe6 {[%emt 0:00:02]} 39. Nb3 {[%emt 0:00:29]} Rd6 {[%emt 0:00:01]} 40. Nc5 {[%emt 0:00:19]} Ra7 {[%emt 0:00:03]} 41. Kg2 {[%emt 0:00:32]} Kg7 {[%emt 0:00:24]} 42. Kf2 {[%emt 0:01:08]} Kf7 {[%emt 0:00:24]} 43. Rg1 {[%emt 0:01:17]} Rd8 {[%emt 0:01:13]} 44. Ke2 {[%emt 0:00:20]} Ke7 {[%emt 0:00:42]} 45. Rbb1 {[%emt 0:01:15]} Rh8 {[%emt 0:01:53]} 46. Kd2 {[%emt 0:00:13]} Kd6 {[%emt 0:01:59]} 47. Rg2 {[%emt 0:00:18]} Rhh7 {[%emt 0:00:47]} 48. Rbg1 {[%emt 0:02:29]} Kd5 {[%emt 0:00:57]} 49. Kc3 {[%emt 0:00:13]} Ra8 {[%emt 0:01:38]} 50. Kb3 {[%emt 0:02:12]} (50. g4 $5 hxg4 (50... fxg4 51. hxg4 h4 52. Rh2 $18) 51. hxg4 $14) 50... Raa7 {[%emt 0:00:44]} 51. Ka3 {[%emt 0:00:24]} Ra8 {[%emt 0:00:05]} 52. Rc2 {[%emt 0:00:35]} Kd6 {[%emt 0:00:30]} 53. Rgc1 {[%emt 0:00:27]} Rc7 {[%emt 0:00:40]} 54. Nb3 {[%emt 0:02:22]} Nd5 {[%emt 0:00:20]} 55. Re1 {[%emt 0:00:09]} Rh7 {[%emt 0:00:19]} 56. Rg2 {[%emt 0:00:49]} Nf6 {[%emt 0:00:16]} 57. Nd2 {[%emt 0:01:25]} Rg8 {[%emt 0:00:19]} 58. Nb3 {[%emt 0:02:43]} Ra8 {[%emt 0:00:06]} 59. Nc5 {[%emt 0:00:18]} Raa7 {[%emt 0:00:16]} 60. Kb2 {[%emt 0:00:31]} Ra8 {[%emt 0:00:08]} 61. Kb3 {[%emt 0:01:11]} Raa7 {[%emt 0:00:05]} 62. Ree2 {[%emt 0:02:12]} Ra8 {[%emt 0:00:19]} 63. Rg1 {[%emt 0:00:04]} Raa7 {[%emt 0:00:44]} 64. Kc2 {[%emt 0:00:14]} Ra8 {[%emt 0:01:28]} 65. Kd2 {[%emt 0:01:48]} Kd5 {[%emt 0:00:57]} 66. Ree1 {[%emt 0:00:58]} Kd6 {[%emt 0:00:07]} 67. Rg2 {[%emt 0:00:25]} Kd5 {[%emt 0:00:40]} 68. Reg1 {[%emt 0:00:32]} Raa7 {[%emt 0:01:03]} 69. Kc3 {[%emt 0:00:37]} Kd6 {[%emt 0:03:43] [#]} 70. g4 $1 {[%emt 0:00:26]} hxg4 {[%emt 0:02:16]} (70... fxg4 71. hxg4 hxg4 72. Rxg4 Nxg4 73. Rxg4 $16) 71. hxg4 {[%emt 0:00:01]} Nd5+ {[%emt 0:01:10]} (71... fxg4 72. Rxg4 Nxg4 73. Rxg4 $16) 72. Kd2 {[%emt 0:00:05]} Nxb4 {[%emt 0:01:43]} 73. gxf5 {[%emt 0:00:26]} gxf5 {[%emt 0:00:05]} 74. Rg6+ {[%emt 0:01:02]} Kd5 {[%emt 0:00:30]} (74... Ke7 $1 $11) 75. Kc3 $36 {[%emt 0:00:07][%mdl 2048] Black is under strong pressure.} Nd3 {[%emt 0:00:23] [#] Hoping for ...b4+.} 76. Nxd3 {[%emt 0:09:19]} (76. Nxe4 $1 $16 {Nf6+ would kill now.} Kxe4 77. Re6+ Kf3 (77... Kd5 78. Rgg6 Rad7 79. Kxd3 Rhe7 80. Rxc6) 78. Kxd3) 76... exd3 {[%emt 0:00:01][%mdl 4096] Endgame. KRR-KRR} 77. R1g5 {[%emt 0:00:51]} (77. Kxd3 $5 c5 $8 78. Rf6 c4+ 79. Kc3 $16) 77... Rhf7 $2 {[%emt 0:02:25][%mdl 8192]} (77... Ke4 $1 $11 78. Re6+ (78. Rxc6 $2 Rac7 $19) 78... Kf3) 78. Kxd3 $18 {[%emt 0:00:11][%csl Gd3][%cal Re3e4]} Rae7 {[%emt 0:00:01]} 79. Rg8 {[%emt 0:02:41]} Kd6 {[%emt 0:02:49]} 80. Ra8 {[%emt 0:03:15]} Rf6 {[%emt 0:07:06]} 81. Rxa6 {[%emt 0:01:11]} Rfe6 {[%emt 0:00:01]} 82. Rg3 {[%emt 0:00:11]} ({Worse is} 82. Rxf5 Rxe3+ 83. Kc2 Re2+ 84. Kb1 Re1+ 85. Kc2 R7e2+ 86. Kd3 Re3+ 87. Kd2 R3e2+ (87... R1e2+ 88. Kd1 $11) 88. Kc3 Re3+ 89. Kc2 Rh3 90. Rf6+ (90. Rxb5 {gets mated.} Re2+ 91. Kd1 Ra2) 90... Kd5 91. Raxc6 Rh2+ 92. Kb3 Rb1+ 93. Ka3 Ra1+ 94. Kb3 Rb1+ 95. Ka3 Rhb2 $11 (95... Ra1+ 96. Kb3 $11)) 82... Rb7 {[%emt 0:00:06]} 83. Ra8 {[%emt 0:01:09] And now a6 would win.} Ree7 $2 {[%emt 0:01:41]} (83... Rbe7 84. a6 Kc7) 84. Rg6+ {[%emt 0:01:18]} Kc7 {[%emt 0:01:28]} 85. a6 {[%emt 0:00:23] Weighted Error Value: White=0.08 (flawless) /Black=0.08 (flawless) .  Loses game:     	---       	Black=1      Mistake:       	White=2     	Black=5      Inaccurate:     	White=7     	Black=4      OK:         	White=17    	Black=30     Best:        	White=8     	Black=5      Brilliant:      	White=1     	---} 1-0

[Event "26th Triest Festival 2024"]
[Site "Triest"]
[Date "2024.09.02"]
[Round "4.5"]
[White "Kanyamarala, Tarun"]
[Black "Wong, Zhenyong Jayden"]
[Result "1/2-1/2"]
[Annotator "TA"]
[ECO "B14"]
[WhiteElo "2361"]
[BlackElo "2397"]
[PlyCount "176"]
[EventDate "2024.09.02"]
[EventType "swiss"]
[EventCountry "ITA"]
[SourceTitle "playchess.com"]
[Source "ChessBase"]
[SourceQuality "1"]
[TimeControl "5400+30"]

{[%evp 75,176,27,23,0,0,0,0,0,0,0,212,219,179,158,309,309,295,238,264,160,155,0,283,297,297,297,297,297,297,297,290,290,283,283,250,250,250,250,250,250,243,0,43,43,43,43,43,0,43,43,43,43,43,105,43,43,43,43,43,43,43,43,43,43,43,43,43,43,43,43,43,43,43,0,0,0,0,0,0,0,0,0,0,0,0,0,0,0,0,0,0,0,0,0,0,0,0,0,0,0,0,0,0]} 1. e4 {[%emt 0:00:04]} c6 {[%emt 0:04:30]} 2. d4 {[%emt 1:31:26]} d5 {[%emt 0:00:06]} 3. exd5 {[%emt 0:00:00]} cxd5 {[%emt 0:00:05]} 4. c4 {[%emt 0:00:00]} Nf6 {[%emt 0:00:07]} 5. Nc3 {[%emt 0:00:00]} e6 {[%emt 0:06:05]} 6. Nf3 {[%emt 0:00:00]} Bb4 {[%emt 0:00:19]} 7. cxd5 {[%emt 0:00:00]} Nxd5 {[%emt 0:00:08]} 8. Qc2 {[%emt 0:00:00]} Nc6 {[%emt 0:01:53]} 9. a3 {[%emt 0:00:00]} Ba5 {[%emt 0:05:34]} 10. Bb5 {[%emt 0:00:00] B14: Caro-Kann: Panov-Botvinnik Attack with 5...e6 and 5...g6.} Qb6 {[%emt 0:08:58]} 11. Ba4 {[%emt 0:00:00]} O-O {[%emt 0:16:14]} 12. Qd3 $146 {[%emt 0:00:00]} ({Predecessor:} 12. Be3 e5 13. O-O Nxe3 14. fxe3 exd4 15. Ng5 f5 16. Bb3+ Kh8 17. Qd1 g6 18. Nd5 {½-½ Mastrovasilis,A (2461)-Svetushkin,D (2491) Kavala op 11th 2002 (5)}) 12... e5 {[%emt 0:09:48]} 13. O-O {[%emt 0:00:00]} Bxc3 {[%emt 0:00:46]} 14. bxc3 {[%emt 0:00:00]} e4 {[%emt 0:00:27]} 15. Qxe4 {[%emt 0:00:00]} Nxc3 {[%emt 0:00:06]} 16. Qc2 {[%emt 0:00:00]} Nxd4 {[%emt 0:08:33]} 17. Nxd4 {[%emt 0:00:00]} Qxd4 {[%emt 0:00:02]} 18. Bb2 {[%emt 0:00:00]} Qxa4 {[%emt 0:00:14]} 19. Qxc3 {[%emt 0:00:00]} Qg4 {[%emt 0:03:48]} 20. Rfe1 {[%emt 0:00:00]} Be6 {[%emt 0:10:57]} 21. h3 {[%emt 0:00:00]} Qg6 {[%emt 0:08:07]} 22. Re3 {[%emt 0:00:00]} Rac8 {[%emt 0:00:14]} 23. Qd4 {[%emt 0:00:00]} Rfd8 {[%emt 0:02:01]} 24. Qxa7 {[%emt 0:00:00]} Qc2 {[%emt 0:09:02]} 25. Be5 {[%emt 0:00:00]} Rd1+ {[%emt 0:00:47]} 26. Rxd1 {[%emt 0:00:00]} Qxd1+ {[%emt 0:00:02]} 27. Kh2 {[%emt 0:00:00]} Qd5 {[%emt 0:00:48]} 28. Qb6 {[%emt 0:00:00]} Qc6 {[%emt 0:01:22]} 29. Qb4 {[%emt 0:00:00]} f6 {[%emt 0:00:59]} 30. Bb2 {[%emt 0:00:00]} Kf7 {[%emt 0:01:14]} 31. Qh4 {[%emt 0:00:05]} Bf5 {[%emt 0:00:57]} 32. Qh5+ {[%emt 0:00:48]} Bg6 {[%emt 0:00:06]} 33. Qd1 {[%emt 0:00:36]} Bf5 {[%emt 0:01:43]} 34. Qb3+ {[%emt 0:00:36]} Be6 {[%emt 0:00:21]} 35. Qd3 {[%emt 0:01:19]} Qc2 {[%emt 0:01:00]} 36. Qb5 {[%emt 0:02:59]} Qc7+ {[%emt 0:00:27]} 37. Rg3 {[%emt 0:00:35]} Kf8 {[%emt 0:00:37]} 38. Qb4+ {[%emt 0:01:45]} Kf7 {[%emt 0:00:14]} 39. Qb5 {[%emt 0:00:20]} Kf8 {[%emt 0:00:42]} 40. Qd3 {[%emt 0:04:07]} Qc2 {[%emt 0:00:35]} 41. Qe3 {[%emt 0:02:25]} Kf7 {[%emt 0:00:30]} 42. Bd4 {[%emt 0:00:49]} Rd8 $2 {[%emt 0:00:29]} (42... Rc4 $11) 43. Rxg7+ $1 $18 {[%emt 0:01:14]} Kxg7 {[%emt 0:00:14]} 44. Qg5+ {[%emt 0:00:06]} Kf7 $2 {[%emt 0:00:48]} (44... Qg6 $16 45. Bxf6+ Kf7 46. Bxd8 (46. Qxg6+ hxg6 47. Bxd8 b5 $18) 46... Qxg5 47. Bxg5 h5) 45. Qxf6+ $18 {[%emt 0:00:08]} Ke8 {[%emt 0:00:01]} 46. Qxe6+ {[%emt 0:00:27]} Kf8 {[%emt 0:00:01]} 47. Qf6+ {[%emt 0:03:19]} Ke8 {[%emt 0:00:00] [#]} 48. Qe6+ {[%emt 0:00:37]} (48. Bb6 $1 $16 Rd7 49. Qe6+ Re7 50. Qg8+ Kd7 51. Qd5+ Ke8 52. Bc5) 48... Kf8 $18 {[%emt 0:00:01]} 49. Bg7+ {[%emt 0:00:42]} Kxg7 {[%emt 0:00:20]} 50. Qe7+ {[%emt 0:00:04]} Kg6 {[%emt 0:01:02]} 51. Qxd8 {[%emt 0:00:06]} Qxf2 {[%emt 0:00:15]} 52. Qd6+ {[%emt 0:01:14]} Kf7 {[%emt 0:01:05]} 53. Qc7+ {[%emt 0:00:21]} Kf6 {[%emt 0:01:39]} 54. Qxb7 {[%emt 0:00:22]} ({Weaker is} 54. Qxh7 Qf4+ 55. Kg1 (55. g3 Qf2+ 56. Kh1 Qxg3 $11) 55... Qd4+ 56. Kf1 Qc4+ 57. Kf2 Qd4+ 58. Ke2 Qe5+ 59. Kf3 Qc3+ 60. Ke2 Qb2+ 61. Ke3 Qc1+ 62. Kf2 Qd2+ 63. Kf3 Qc3+ 64. Kf2 Qc5+ 65. Ke2 Qe5+ 66. Kd3 Qd6+ 67. Ke2 Qe5+ $11) 54... Qf4+ {[%emt 0:00:16]} 55. g3 {[%emt 0:00:08]} Qc1 {[%emt 0:00:45]} 56. Qf3+ {[%emt 0:01:05]} ({Inferior is} 56. Qxh7 Qd2+ 57. Kh1 Qe1+ 58. Kg2 Qe2+ 59. Kg1 Qe1+ 60. Kg2 Qe2+ 61. Kg1 Qe3+ 62. Kf1 Qf3+ 63. Ke1 Qxa3 $11) 56... Kg7 {[%emt 0:00:34]} 57. Qg4+ {[%emt 0:00:30]} Kh8 {[%emt 0:00:07]} 58. Qf3 $2 {[%emt 0:00:35]} (58. Qd4+ $18 Kg8 59. Qd5+ Kg7 60. Qa2) 58... Qb2+ {[%emt 0:00:19]} 59. Kg1 {[%emt 0:00:18]} Qc1+ {[%emt 0:00:13]} 60. Kf2 {[%emt 0:00:36]} Qb2+ $1 {[%emt 0:00:03]} 61. Kf1 {[%emt 0:00:28]} Qc1+ {[%emt 0:00:11]} 62. Kg2 {[%emt 0:00:26]} Qb2+ {[%emt 0:00:06]} 63. Qf2 {[%emt 0:00:41]} Qxa3 {[%emt 0:00:03]} 64. Qf6+ {[%emt 0:00:14]} Kg8 {[%emt 0:00:02]} 65. Qg5+ {[%emt 0:00:03]} Kf7 {[%emt 0:03:58]} 66. Qd5+ {[%emt 0:00:28]} Kg7 {[%emt 0:00:00]} 67. Qb7+ {[%emt 0:00:03]} Kg8 {[%emt 0:00:00]} 68. Qc8+ {[%emt 0:00:10]} Kg7 {[%emt 0:00:00]} 69. Qd7+ {[%emt 0:00:03]} Kg8 {[%emt 0:00:00]} 70. Qg4+ {[%emt 0:00:12]} Kh8 {[%emt 0:00:31]} 71. h4 {[%emt 0:00:06]} Qa8+ {[%emt 0:01:10]} 72. Qf3 {[%emt 0:00:12]} Qa2+ {[%emt 0:00:34]} 73. Kh3 {[%emt 0:00:10]} Qe6+ {[%emt 0:00:21]} 74. g4 {[%emt 0:00:05]} Kg7 {[%emt 0:01:15]} 75. Qc3+ {[%emt 0:00:23]} Kg8 {[%emt 0:00:27]} 76. Kg3 {[%emt 0:00:38]} h5 {[%emt 0:00:38]} 77. gxh5 {[%emt 0:00:22]} Kh7 {[%emt 0:00:29]} 78. Qc7+ {[%emt 0:01:02]} Kh6 {[%emt 0:00:29]} 79. Qc1+ {[%emt 0:00:15]} Kh7 {[%emt 0:00:08]} 80. Qc2+ {[%emt 0:00:03]} Kh6 {[%emt 0:00:32]} 81. Qd2+ {[%emt 0:00:03]} Kh7 {[%emt 0:00:09]} 82. Qd3+ {[%emt 0:00:32]} Kh6 {[%emt 0:00:10]} 83. Qd4 {[%emt 0:01:38]} Qg8+ {[%emt 0:00:57]} 84. Kf4 {[%emt 0:00:29]} Qf7+ {[%emt 0:00:26]} 85. Ke3 {[%emt 0:00:13]} Qe6+ {[%emt 0:00:38]} 86. Qe4 {[%emt 0:00:07]} Qxe4+ {[%emt 0:00:04]} 87. Kxe4 {[%emt 0:00:01]} Kxh5 {[%emt 0:00:05]} 88. Ke5 {[%emt 0:00:03]} Kxh4 {[%emt 0:02:27]} 1/2-1/2